fUST/lending_fUST_20251017
["ID","MTS","AMOUNT","RATE_DAILY","PERIOD"]
[391559342,1760653833053,-500.0,0.00032799,2]
[391559343,1760653833062,-500.0,0.00032799,2]
[391559344,1760653833072,-500.0,0.00032799,2]
[391559345,1760653833081,-500.0,0.00032799,2]
[391559346,1760653833091,-500.0,0.00032799,2]
[391559347,1760653833100,-500.0,0.00032799,2]
[391559348,1760653833109,-500.0,0.00032799,2]
[391559349,1760653833119,-500.0,0.00032799,2]
[391559350,1760653833128,-500.0,0.00032799,2]
[391559351,1760653833138,-500.0,0.00032799,2]
[391559352,1760653833147,-500.0,0.00032799,2]
[391559353,1760653833157,-500.0,0.00032799,2]
[391559354,1760653833166,-500.0,0.00032799,2]
[391559355,1760653833175,-500.0,0.00032799,2]
[391559356,1760653833184,-500.0,0.00032799,2]
[391559357,1760653833194,-500.0,0.00032799,2]
[391559358,1760653833203,-500.0,0.00032799,2]
[391559359,1760653833213,-500.0,0.00032799,2]
[391559360,1760653833222,-162.65533597,0.000328,2]
[391559361,1760653833232,-167.98528681,0.000328,2]
[391559362,1760653833241,-217.23489934,0.000328,2]
[391559363,1760653833250,-2299.13995421,0.000328,2]
[391559364,1760653833260,-375.21607844,0.000328,2]
[391559365,1760653833270,-580.37806817,0.000328,2]
[391559366,1760653833279,-451.27040032,0.000328,2]
[391559367,1760653833289,-630.18254087,0.000328,2]
[391559368,1760653833298,-2796.29479453,0.000328,2]
[391559369,1760653833307,-160.0,0.000328,2]
[391559370,1760653833316,-810.11,0.000328,2]
[391559371,1760653833327,-412.38,0.000328,7]
[391559372,1760653833336,-417.15472785,0.00032819,2]
[391559373,1760653833346,-160.0,0.00032819,2]
[391559374,1760653833355,-2619.52016675,0.00032828,2]
[391559375,1760653833364,-1225.21031132,0.00032828,2]
[391559376,1760653833374,-2619.52016675,0.00032895,2]
[391559377,1760653833383,-1225.21031132,0.00032895,2]
[391559378,1760653833393,-5648.07699044,0.00032905,2]
[391559379,1760653833402,-2619.52016675,0.00032963,2]
[391559380,1760653833412,-1225.21031132,0.00032963,2]
[391559381,1760653833422,-421.72081318,0.00032973,5]
[391559382,1760653833431,-500.0,0.00032973,5]
[391559383,1760653833441,-500.0,0.00032973,5]
[391559384,1760653833451,-500.0,0.00032973,5]
[391559385,1760653833460,-500.0,0.00032973,5]
[391559386,1760653833470,-500.0,0.00032973,5]
[391559387,1760653833479,-500.0,0.00032973,5]
[391559388,1760653833489,-500.0,0.00032973,5]
[391559389,1760653833498,-500.0,0.00032973,5]
[391559390,1760653833508,-500.0,0.00032973,5]
[391559391,1760653833517,-5239.0403335,0.0003298,2]
[391559392,1760653833527,-2450.42062264,0.0003298,2]
[391559393,1760653833537,-170.49750425,0.00032989,7]
[391559394,1760653833547,-225.8289245,0.00032989,7]
[391559395,1760653833556,-388.59740417,0.00032989,7]
[391559396,1760653833566,-100000.0,0.0003299,2]
[391559397,1760653833576,-510.24248477,0.00033005,2]
[391559398,1760653833585,-162.65533597,0.000331,2]
[391559399,1760653833594,-167.98528681,0.000331,2]
[391559400,1760653833604,-2299.13995421,0.000331,2]
[391559401,1760653833616,-375.21607844,0.000331,2]
[391559402,1760653833626,-580.37806817,0.000331,2]
[391559403,1760653833635,-451.27040032,0.000331,2]
[391559404,1760653833645,-630.18254087,0.000331,2]
[391559405,1760653833654,-121.78315225,0.000331,2]
[391559406,1760653833667,-255.49749186,0.000331,2]
[391559407,1760653833678,-1050.09473825,0.000331,2]
[391559408,1760653833690,-877.51855693,0.000331,2]
[391559409,1760653833702,-491.40085524,0.000331,2]
[391559410,1760653833712,-406.613705,0.00033165,2]
[391559411,1760653833721,-560.0,0.00033169,2]
[391559412,1760653833731,-22694.624419,0.00033194,2]
[391559413,1760653833740,-500.0,0.00033273,5]
[391559414,1760653833750,-500.0,0.00033273,5]
[391559415,1760653833761,-503.6411007,0.00033273,3]
[391559416,1760653833771,-280.0,0.00033294,120]
[391559417,1760653833780,-150.0,0.00033294,2]
[391559418,1760653833791,-155.0,0.00033294,2]
[391559419,1760653833800,-102705.42633033,0.00033294,20]
[391559449,1760653838474,-36678.6,0.00032799,2]
[391559450,1760653838484,-500.0,0.00032799,2]
[391559452,1760653838494,-500.0,0.00032799,2]
[391559454,1760653838504,-500.0,0.00032799,2]
[391559456,1760653838513,-500.0,0.00032799,2]
[391559458,1760653838523,-500.0,0.00032799,2]
[391559460,1760653838532,-500.0,0.00032799,2]
[391559462,1760653838544,-500.0,0.00032799,2]
[391559464,1760653838554,-500.0,0.00032799,2]
[391559466,1760653838564,-500.0,0.00032799,2]
[391559468,1760653838574,-500.0,0.00032799,2]
[391559469,1760653838584,-500.0,0.00032799,2]
[391559470,1760653838594,-500.0,0.00032799,2]
[391559471,1760653838604,-500.0,0.00032799,2]
[391559472,1760653838614,-500.0,0.00032799,2]
[391559473,1760653838623,-272.09895127,0.00032799,2]
[391559474,1760653838633,-500.0,0.00032799,2]
[391559475,1760653838642,-500.0,0.00032799,2]
[391559476,1760653838652,-500.0,0.00032799,2]
[391559477,1760653838662,-310.8989042,0.00032799,2]
[391559478,1760653838672,-500.0,0.00032799,2]
[391559479,1760653838682,-500.0,0.00032799,2]
[391559480,1760653838692,-500.0,0.00032799,2]
[391559481,1760653838702,-500.0,0.00032799,2]
[391559482,1760653838712,-500.0,0.00032799,2]
[391559483,1760653838721,-500.0,0.00032799,2]
[391559484,1760653838731,-500.0,0.00032799,2]
[391559485,1760653838741,-500.0,0.00032799,2]
[391559486,1760653838751,-500.0,0.00032799,2]
[391559487,1760653838761,-500.0,0.00032799,2]
[391559488,1760653838770,-500.0,0.00032799,2]
[391559489,1760653838779,-91925.4175804,0.00033294,20]
[391559490,1760653838789,-475.15459922,0.00033294,2]
[391559491,1760653838798,-471.82143073,0.00033294,60]
[391559492,1760653838808,-300.0,0.00033294,2]
[391559493,1760653838820,-3887.57968083,0.00033294,2]
[391559494,1760653838830,-811.10387032,0.00033294,2]
[391559495,1760653838840,-258.64788514,0.00033294,2]
[391559496,1760653838849,-297.39129289,0.00033294,2]
[391559497,1760653838859,-327.57438091,0.00033294,2]
[391559498,1760653838972,-292.35231845,0.00033294,2]
[391559499,1760653838982,-638.33909514,0.00033294,2]
[391559500,1760653838992,-1364.18697897,0.00033294,2]
[391559501,1760653839002,-156.88970523,0.00033294,2]
[391559502,1760653839017,-790.48818897,0.00033294,2]
[391559503,1760653839027,-7903.0,0.00033294,30]
[391559504,1760653839038,-6303.54945329,0.00033294,2]
[391559505,1760653839048,-157.89074145,0.00033294,2]
[391559506,1760653839058,-9452.77145401,0.00033294,2]
[391559507,1760653839068,-1719.82406393,0.00033294,2]
[391559508,1760653839078,-2079.71782951,0.00033294,2]
[391559509,1760653839087,-757.03740008,0.00033294,60]
[391559510,1760653839097,-508.43372738,0.00033294,2]
[391559511,1760653839107,-1002.4011067,0.00033294,2]
[391559512,1760653839117,-468.63570389,0.00033294,2]
[391559513,1760653839127,-179.59856484,0.00033294,2]
[391559514,1760653839137,-30493.54823338,0.00033294,2]
[391559515,1760653839147,-189.48561332,0.00033294,2]
[391559516,1760653839157,-1399.26411979,0.00033294,2]
[391559517,1760653839166,-5905.48874604,0.00033294,2]
[391559518,1760653839176,-10698.81369837,0.00033294,2]
[391559519,1760653839186,-203.32846428,0.00033294,2]
[391559520,1760653839195,-652.27965001,0.00033294,2]
[391559521,1760653839205,-2920.0,0.00033294,2]
[391559522,1760653839215,-10664.56066424,0.00033294,2]
[391559523,1760653839225,-7014.57826319,0.00033294,30]
[391559524,1760653839234,-1445.06612424,0.00033294,2]
[391559525,1760653839244,-385.49265543,0.00033294,2]
[391559526,1760653839253,-201.68166722,0.00033294,2]
[391559527,1760653839262,-17316.67269848,0.00033294,120]
[391559528,1760653839272,-10010.42997549,0.00033294,5]
[391559529,1760653839282,-3152.19076433,0.00033294,2]
[391559530,1760653839293,-166.84752273,0.00033294,2]
[391559531,1760653839303,-365.23851919,0.00033294,2]
[391559532,1760653839313,-100407.46265841,0.00033294,2]
[391559533,1760653839323,-3081.01260286,0.00033294,30]
[391559534,1760653839333,-150.59089501,0.00033294,2]
[391559535,1760653839342,-258.966648,0.00033294,2]
[391559536,1760653839352,-4197.54440404,0.00033294,60]
[391559537,1760653839361,-3771.92097982,0.00033294,2]
[391559538,1760653839370,-26975.72412101,0.00033294,2]
[391559539,1760653839379,-162.65533597,0.000335,2]
[391559540,1760653839388,-2299.13995421,0.000335,2]
[391559541,1760653839398,-375.21607844,0.000335,2]
[391559542,1760653839407,-580.37806817,0.000335,2]
[391559543,1760653839417,-451.27040032,0.000335,2]
[391559544,1760653839426,-630.18254087,0.000335,2]
[391559545,1760653839436,-2796.29479453,0.000335,2]
[391559546,1760653839445,-1000.0,0.00033521,5]
[391559547,1760653839454,-501.51297254,0.00033521,5]
[391559548,1760653839463,-1000.0,0.00033521,5]
[391559549,1760653839473,-768.51685501,0.00033521,5]
[391559550,1760653839482,-1999.0,0.00033595,120]
[391559551,1760653839491,-536.1870179,0.00033605,2]
[391559552,1760653839500,-2619.52016675,0.0003379,2]
[391559553,1760653839509,-1225.21031132,0.0003379,2]
[391559554,1760653839519,-162.65533597,0.000338,2]
[391559555,1760653839528,-2299.13995421,0.000338,2]
[391559556,1760653839539,-375.21607844,0.000338,2]
[391559557,1760653839548,-580.37806817,0.000338,2]
[391559558,1760653839558,-451.27040032,0.000338,2]
[391559559,1760653839567,-630.18254087,0.000338,2]
[391559560,1760653839576,-2796.29479453,0.000338,2]
[391559561,1760653839585,-1000.0,0.00033821,5]
[391559562,1760653839595,-160.0,0.0003397,2]
[391559563,1760653839604,-1297.28645639,0.00034068,5]
[391559564,1760653839613,-1500.0,0.00034068,5]
[391559565,1760653839621,-2619.52016675,0.0003408,2]
[391559566,1760653839631,-1225.21031132,0.0003408,2]
[391559567,1760653839640,-2299.13995421,0.000342,2]
[391559568,1760653839650,-375.21607844,0.000342,2]
[391559569,1760653839659,-580.37806817,0.000342,2]
[391559570,1760653839669,-451.27040032,0.000342,2]
[391559571,1760653839679,-630.18254087,0.000342,2]
[391559572,1760653839689,-2796.29479453,0.000342,2]
[391559573,1760653839698,-562.13155102,0.00034205,2]
[391559574,1760653839708,-1398.13363596,0.00034368,5]
[391559575,1760653839717,-2619.52016675,0.0003449,2]
[391559576,1760653839726,-1225.21031132,0.0003449,2]
[391559577,1760653839736,-2299.13995421,0.000345,2]
[391559578,1760653839745,-2796.29479453,0.000345,2]
[391559579,1760653839755,-260.0,0.00034518,2]
[391559580,1760653839764,-500.0,0.00034773,5]
[391559581,1760653839774,-2299.13995421,0.000348,2]
[391559582,1760653839785,-2796.29479453,0.000348,2]
[391559583,1760653839795,-588.07608415,0.00034805,2]
[391559584,1760653839804,-1999.0,0.00034965,120]
[391559585,1760653839814,-10478.080667,0.0003497,2]
[391559586,1760653839824,-4900.84124528,0.0003497,2]
[391559587,1760653839833,-360.0,0.00035065,2]
[391559588,1760653839842,-238.905392,0.0003516,120]
[391559589,1760653839852,-5000.0,0.0003519,4]
[391559590,1760653839861,-2299.13995421,0.000352,2]
[391559591,1760653839871,-2796.29479453,0.000352,2]
[391559592,1760653839881,-614.02061727,0.00035405,2]
[391559593,1760653839895,-2419.92,0.00035469,2]
[391559594,1760653839904,-2299.13995421,0.000355,2]
[391559595,1760653839915,-2796.29479453,0.000355,2]
[391559596,1760653839924,-460.0,0.00035613,2]
[391559597,1760653839934,-170.0,0.00035719,2]
[391559598,1760653839944,-2619.52016675,0.0003589,3]
[391559599,1760653839954,-1225.21031132,0.0003589,3]
[391559600,1760653839965,-2299.13995421,0.000359,2]
[391559601,1760653839974,-2796.29479453,0.000359,2]
[391559602,1760653839984,-2317.7,0.00036,14]
[391559603,1760653839993,-639.96515039,0.00036005,2]
[391559604,1760653840003,-412.38,0.000361,14]
[391559605,1760653840012,-560.0,0.00036161,2]
[391559606,1760653840024,-1999.0,0.00036335,120]
[391559607,1760653840034,-5648.07699044,0.00036404,2]
[391559608,1760653840045,-665.90968352,0.00036605,2]
[391559609,1760653840055,-660.0,0.00036709,2]
[391559610,1760653840065,-259.44533124,0.00037205,2]
[391559611,1760653840075,-760.0,0.00037257,2]
[391559612,1760653840085,-380.0,0.0003757,2]
[391559613,1760653840095,-1691.75295278,0.00037705,120]
[391559614,1760653840104,-860.0,0.00037805,2]
[391559615,1760653840114,-960.0,0.00038353,2]
[391559616,1760653840123,-22694.62441898,0.00038397,2]
[391559617,1760653840132,-1060.0,0.00038901,2]
[391559618,1760653840142,-1160.0,0.00039449,2]
[391559619,1760653840152,-406.613705,0.00039654,2]
[391559620,1760653840162,-2619.52016675,0.00039892,3]
[391559621,1760653840172,-1225.21031132,0.00039892,3]
[391559622,1760653840182,-5648.07699044,0.00039903,2]
[391559623,1760653840192,-500.0,0.00039973,5]
[391559624,1760653840202,-500.0,0.00039973,5]
[391559625,1760653840211,-500.0,0.00039973,5]
[391559626,1760653840221,-500.0,0.00039973,5]
[391559627,1760653840230,-572.89338888,0.00039973,5]
[391559628,1760653840240,-531.62977254,0.00039973,5]
[391559629,1760653840252,-500.0,0.00039973,5]
[391559630,1760653840263,-500.0,0.00039973,5]
[391559632,1760653840274,-500.0,0.00039973,5]
[391559634,1760653840284,-511.35886215,0.00039973,5]
[391559636,1760653840302,-450.45230454,0.00039973,5]
[391559637,1760653840315,-164.20426026,0.00039973,5]
[391559638,1760653840325,-500.0,0.00039973,5]
[391559639,1760653840335,-500.0,0.00039973,5]
[391559640,1760653840345,-500.16391042,0.00039973,5]
[391559641,1760653840354,-500.0,0.00039973,5]
[391559642,1760653840365,-500.0,0.00039973,5]
[391559643,1760653840374,-500.0,0.00039973,5]
[391559644,1760653840384,-500.0,0.00039973,5]
[391559645,1760653840393,-500.0,0.00039973,5]
[391559646,1760653840402,-500.0,0.00039973,5]
[391559647,1760653840412,-629.29687814,0.00039973,5]
[391559648,1760653840421,-175.49029393,0.00039973,5]
[391559649,1760653840430,-518.81702581,0.00039973,5]
[391559650,1760653840440,-500.0,0.00039973,5]
[391559651,1760653840450,-500.13998967,0.00039973,5]
[391559652,1760653840459,-500.0,0.00039973,5]
[391559653,1760653840468,-500.0,0.00039973,5]
[391559655,1760653840478,-500.0,0.00039973,5]
[391559657,1760653840488,-500.0,0.00039973,5]
[391559659,1760653840497,-500.0,0.00039973,5]
[391559661,1760653840507,-500.0,0.00039973,5]
[391559663,1760653840516,-500.0,0.00039973,5]
[391559665,1760653840526,-500.0,0.00039973,5]
[391559667,1760653840535,-500.0,0.00039973,5]
[391559669,1760653840548,-500.0,0.00039973,5]
[391559671,1760653840557,-500.0,0.00039973,5]
[391559673,1760653840566,-508.3442987,0.00039973,5]
[391559675,1760653840575,-500.0,0.00039973,5]
[391559677,1760653840584,-500.0,0.00039973,5]
[391559678,1760653840594,-500.0,0.00039973,5]
[391559680,1760653840603,-503.61283294,0.00039973,5]
[391559682,1760653840613,-171.22010775,0.00039973,5]
[391559684,1760653840623,-527.95839725,0.00039973,5]
[391559686,1760653840632,-500.0,0.00039973,5]
[391559688,1760653840641,-500.17430105,0.00039973,5]
[391559690,1760653840650,-500.0,0.00039973,5]
[391559692,1760653840659,-500.0,0.00039973,5]
[391559694,1760653840669,-1260.0,0.00039997,2]
[391559696,1760653840679,-529340.32330322,0.0004,7]
[391559698,1760653840688,-151.0,0.0004,120]
[391559700,1760653840698,-238.905392,0.00040183,120]
[391559703,1760653840707,-500.41742822,0.00040521,5]
[391559705,1760653840717,-500.88756936,0.00040521,5]
[391559706,1760653840725,-513.59022648,0.00040521,5]
[391559708,1760653840735,-1000.0,0.00040521,5]
[391559711,1760653840745,-500.0,0.00040521,5]
[391559712,1760653840754,-500.38039849,0.00040521,5]
[391559715,1760653840764,-329.81979326,0.00040521,5]
[391559717,1760653840774,-501.06688087,0.00040521,5]
[391559718,1760653840783,-1000.0,0.00040521,5]
[391559720,1760653840794,-1000.0,0.00040521,5]
[391559722,1760653840803,-500.0,0.00040521,5]
[391559724,1760653840813,-1000.0,0.00040521,5]
[391559726,1760653840823,-500.00810227,0.00040521,5]
[391559728,1760653840832,-500.0,0.00040521,5]
[391559730,1760653840842,-501.31665403,0.00040521,5]
[391559732,1760653840851,-1000.0,0.00040521,5]
[391559734,1760653840860,-500.0,0.00040521,5]
[391559736,1760653840869,-1000.68375299,0.00040521,5]
[391559738,1760653840880,-1000.0,0.00040521,5]
[391559741,1760653840891,-1000.0,0.00040521,5]
[391559743,1760653840906,-1000.0,0.00040521,5]
[391559745,1760653840923,-1000.0,0.00040521,5]
[391559747,1760653840933,-1000.0,0.00040521,5]
[391559749,1760653840942,-214.84605052,0.00040521,5]
[391559751,1760653840952,-1000.0,0.00040521,5]
[391559753,1760653840961,-1000.0,0.00040521,5]
[391559755,1760653840971,-1000.0,0.00040521,5]
[391559757,1760653840980,-500.0,0.00040521,5]
[391559760,1760653840990,-500.0,0.00041068,5]
[391559762,1760653841000,-500.0,0.00041068,5]
[391559764,1760653841017,-1419.69373712,0.00041068,5]
[391559766,1760653841033,-500.0,0.00041068,5]
[391559768,1760653841043,-177.87452253,0.00041068,5]
[391559770,1760653841052,-1000.0,0.00041068,5]
[391559772,1760653841063,-1500.0,0.00041068,5]
[391559774,1760653841073,-500.0,0.00041068,5]
[391559776,1760653841083,-1500.0,0.00041068,5]
[391559778,1760653841093,-500.0,0.00041068,5]
[391559780,1760653841103,-4839.85,0.00041381,2]
[391559782,1760653841113,-2000.0,0.00041616,10]
[391559784,1760653841123,-1304.7610492,0.00041616,10]
[391559786,1760653841133,-200.0,0.00042,120]
[391559788,1760653841142,-2500.0,0.00042164,10]
[391559790,1760653841151,-2317.7,0.000425,14]
[391559791,1760653841161,-500.0,0.00042712,10]
[391559793,1760653841170,-72555.00475432,0.00043,120]
[391559795,1760653841179,-198.0,0.00043138,2]
[391559797,1760653841188,-151.0,0.00043138,2]
[391559799,1760653841198,-151.0,0.00043138,2]
[391559801,1760653841207,-151.0,0.00043138,2]
[391559803,1760653841217,-151.0,0.00043138,2]
[391559805,1760653841226,-151.0,0.00043138,2]
[391559807,1760653841236,-151.0,0.00043138,2]
[391559809,1760653841245,-151.0,0.00043138,2]
[391559811,1760653841254,-151.0,0.00043138,2]
[391559813,1760653841263,-151.0,0.00043138,2]
[391559815,1760653841273,-151.0,0.00043193,2]
[391559817,1760653841282,-151.0,0.00043193,2]
[391559819,1760653841294,-151.0,0.00043193,2]
[391559821,1760653841303,-242.46671906,0.00043193,2]
[391559823,1760653841313,-151.0,0.00043193,2]
[391559825,1760653841323,-151.0,0.00043193,2]
[391559827,1760653841332,-151.0,0.00043248,2]
[391559829,1760653841341,-151.0,0.00043248,2]
[391559831,1760653841351,-151.0,0.00043248,2]
[391559833,1760653841360,-151.0,0.00043248,2]
[391559835,1760653841369,-151.0,0.00043302,2]
[391559837,1760653841379,-151.0,0.00043302,2]
[391559840,1760653841388,-151.0,0.00043302,2]
[391559841,1760653841398,-289.3545318,0.00043302,2]
[391559844,1760653841407,-151.0,0.00043357,2]
[391559846,1760653841417,-151.0,0.00043357,2]
[391559848,1760653841426,-151.0,0.00043357,2]
[391559849,1760653841436,-5648.07699044,0.00043401,2]
[391559852,1760653841446,-245.0,0.00043412,2]
[391559854,1760653841455,-245.0,0.00043412,2]
[391559856,1760653841466,-245.0,0.00043412,2]
[391559857,1760653841475,-150.0,0.00043473,10]
[391559859,1760653841485,-727358.51159182,0.000435,120]
[391559861,1760653841495,-151.0,0.000435,120]
[391559863,1760653841505,-22694.62441898,0.000436,2]
[391559865,1760653841514,-17891.6,0.000437,39]
[391559868,1760653841524,-14440.87647973,0.00043887,60]
[391560302,1760653846642,-729.1,0.00033,2]
[391560303,1760653846651,-729.1,0.000352,2]
[391560304,1760653846660,-151.0,0.0004,120]
[391560305,1760653846670,-151.0,0.00043138,2]
[391560306,1760653846679,-151.0,0.00043138,2]
[391560307,1760653846688,-151.0,0.00043193,2]
[391560308,1760653846697,-198.0,0.00043248,2]
[391560309,1760653846707,-221.743992,0.000435,120]
[391560310,1760653846715,-85646.82775082,0.00043887,60]
[391560311,1760653846724,-25.53491375,0.0004398,120]
[391560317,1760653969400,417.15472785,0.00025,10]
[391560318,1760653971051,417.15472785,0.00025,10]
[391560319,1760653971453,417.15472785,0.00024,7]
[391560320,1760653971887,417.15472785,0.00024,3]
[391560321,1760653975960,417.15472785,0.00025,10]
[391560322,1760653976504,417.15472785,0.00024,7]
[391560323,1760653977028,417.15472785,0.00024,3]
[391560324,1760654044248,417.15472785,0.00027,2]
[391560325,1760654044409,438.45480543,0.000253,2]
[391560326,1760654280160,174.13,0.00015494,2]
[391560327,1760654365805,150.0,0.00025205,2]
[391560328,1760654370338,172.5,0.00025805,2]
[391560329,1760654371209,195.0,0.00026405,2]
[391560330,1760654427356,300.0,0.000264,2]
[391560331,1760654545761,232.68737177,0.000264,2]
[391560332,1760654545784,67.31262823,0.000264,2]
[391560333,1760654664544,417.15472785,0.00027,2]
[391560343,1760654844139,-217.5,0.00027005,2]
[391560344,1760654844159,-164.12088673,0.00027305,2]
[391560345,1760654844178,-2.16810764,0.00027405,2]
[391560348,1760654856730,1500.0,0.00015,2]
[391560351,1760654955117,-162.87704619,0.00027405,2]
[391560352,1760654955138,-240.0,0.00027605,2]
[391560353,1760654955158,-500.0,0.0002806,7]
[391560354,1760654955179,-262.5,0.00028205,2]
[391560356,1760654985351,150.0,0.00025205,2]
[391560357,1760654985730,172.5,0.00025805,2]
[391560358,1760654986135,195.0,0.00026405,2]
[391560359,1760654986547,82.65115793,0.00027005,2]
[391560385,1760655031836,-134.84884207,0.00027005,2]
[391560387,1760655031846,-240.0,0.00027605,2]
[391560389,1760655031856,-262.5,0.00028205,2]
[391560390,1760655031866,-285.0,0.00028805,2]
[391560392,1760655031877,-307.5,0.00029405,2]
[391560394,1760655031887,-330.0,0.00030005,2]
[391560396,1760655031897,-230.29765592,0.00030137,2]
[391560397,1760655031906,-150.32,0.00030555,15]
[391560398,1760655031916,-314.68168022,0.00030605,2]
[391560399,1760655031925,-150.32,0.00030655,15]
[391560400,1760655031935,-370.98072187,0.00032799,2]
[391560474,1760655037541,-129.01927813,0.00032799,2]
[391560476,1760655037551,-160.0,0.000328,2]
[391560478,1760655037560,-153.90022425,0.00032993,2]
[391560481,1760655037585,-238.37977575,0.00032993,2]
[391560483,1760655037594,-254.394354,0.00033077,2]
[391560485,1760655037603,-1600.0,0.00033222,3]
[391560487,1760655037612,-1044.5803548,0.00033223,2]
[391560489,1760655037623,-400.0,0.00034159,3]
[391560491,1760655037632,-400.0,0.00034159,3]
[391560493,1760655037642,-400.0,0.00034159,2]
[391560495,1760655037651,-400.0,0.00034159,3]
[391560497,1760655037660,-400.0,0.00034159,3]
[391560499,1760655037670,-12.14516652,0.0003416,4]
[391560502,1760655037681,-3497.49234508,0.0003416,4]
[391560505,1760655037692,-3260.5324884,0.0003416,4]
[391560507,1760655037701,-387.47371499,0.00034163,2]
[391560509,1760655037711,-2952.0,0.00035,14]
[391560511,1760655037720,-2337.65,0.00035415,2]
[391560513,1760655037729,-2000.0,0.00035832,3]
[391560515,1760655037738,-200.0,0.00036658,3]
[391560517,1760655037747,-560.0,0.00036658,2]
[391560519,1760655037756,-200.0,0.00036658,3]
[391560521,1760655037765,-200.0,0.00036658,3]
[391560523,1760655037774,-3899.82752493,0.000375,60]
[391560525,1760655037783,-406.31,0.00037884,2]
[391560527,1760655037792,-9000.0,0.000386,7]
[391560529,1760655037802,-171.821826,0.00038609,60]
[391560530,1760655037812,-360.0,0.0003934,5]
[391560532,1760655037822,-5000.0,0.0004,90]
[391560534,1760655037831,-170.00999113,0.00041217,28]
[391560537,1760655037843,-4675.3,0.00041317,2]
[391560539,1760655037853,-155.85952,0.00041732,60]
[391560541,1760655037863,-5000.0,0.000425,100]
[391560543,1760655037872,-1334.28828417,0.0004295,2]
[391560545,1760655037882,-2000.0,0.00043,60]
[391560547,1760655037892,-500.0,0.00043169,30]
[391560549,1760655037902,-1334.28828417,0.00043173,2]
[391560551,1760655037911,-500.0,0.00043301,31]
[391560553,1760655037921,-500.0,0.00043301,31]
[391560555,1760655037930,-481.16745673,0.00043301,31]
[391560557,1760655037939,-500.0,0.00043301,31]
[391560559,1760655037948,-500.0,0.00043301,31]
[391560561,1760655037958,-500.0,0.00043301,2]
[391560563,1760655037967,-500.0,0.00043301,31]
[391560565,1760655037978,-376.70277833,0.00043301,31]
[391560567,1760655037987,-626.65138288,0.00043301,31]
[391560569,1760655037996,-500.0,0.00043301,31]
[391560571,1760655038005,-500.0,0.00043301,31]
[391560573,1760655038015,-89.19978885,0.00043301,2]
[391560576,1760655038028,-410.80021115,0.00043301,2]
[391560578,1760655038038,-500.0,0.00043301,31]
[391560580,1760655038047,-406.56361795,0.00043301,31]
[391560582,1760655038056,-500.0,0.00043301,31]
[391560584,1760655038066,-500.0,0.00043301,31]
[391560586,1760655038076,-500.0,0.00043301,2]
[391560588,1760655038086,-500.0,0.00043301,31]
[391560590,1760655038095,-592.39792902,0.00043301,2]
[391560592,1760655038105,-500.0,0.00043301,31]
[391560594,1760655038114,-500.0,0.00043301,31]
[391560596,1760655038124,-500.0,0.00043301,31]
[391560597,1760655038134,-500.0,0.00043301,31]
[391560600,1760655038144,-575.28085865,0.00043301,31]
[391560601,1760655038154,-500.0,0.00043301,31]
[391560603,1760655038164,-500.0,0.00043301,31]
[391560606,1760655038173,-500.0,0.00043301,31]
[391560607,1760655038183,-654.42950629,0.00043302,2]
[391560609,1760655038193,-1177.97311132,0.00043302,2]
[391560611,1760655038202,-2094.17442013,0.00043302,2]
[391560614,1760655038212,-1568.14851495,0.00043302,2]
[391560616,1760655038224,-1703.9990165,0.00043302,2]
[391560618,1760655038234,-333.57946454,0.00043302,2]
[391560620,1760655038244,-381.23367376,0.00043302,2]